Cogmind - Beta 15 @@@ ROGUE MODE // 2025.05.24 @ 13:10:54 Player: clay gamer Result: Destroyed by G-34 Mercenary with Small Laser Performance ------------- Evolutions (0) 0 Regions Visited (1) 200 Robots Destroyed (31) 155 Value Destroyed (688) 688 Prototype IDs (0) 0 Alien Tech Used (0) 0 Bonus (0) 0 TOTAL SCORE: 1043 Bonus ------- None Cogmind --------- Core Integrity 0/250 Matter 320/350 Energy 118/125 System Corruption 0% Temperature Cool (6) Movement Walking (120) Location -10/Materials Parts ------- > --- POWER (1) -------- Light Ion Engine > --- PROPULSION (2) --- Aluminum Leg Aluminum Leg > --- UTILITY (2) ------ Heat Sink Small Matter Pod > --- WEAPON (2) ------- Small Laser Small Laser > --- INVENTORY (5) ---- Aluminum Leg Heat Sink Peak State ------------ > --- POWER ------------ Light Ion Engine > --- PROPULSION ------- Aluminum Leg Aluminum Leg > --- UTILITY ---------- Small Matter Pod Improved Terrain Scanner > --- WEAPON ----------- EM Pulse Gun Light Assault Rifle > --- INVENTORY -------- Ion Engine Light Ion Engine Aluminum Leg Small Laser [Rating: 9] Favorites ----------- Power Light Ion Engine Engine Light Ion Engine Propulsion Aluminum Leg Leg Aluminum Leg Utility Small Matter Pod Device Heat Sink Storage Small Matter Pod Weapon Small Laser Energy Gun Small Laser Ballistic Gun Light Assault Rifle Build | -11 -10 ------- Run | Yrd Mat Slots Evolved . | . . Power . | . . Propulsion . | . . Utility . | . . Weapon . | . . Parts Attached 21 | 6 15 Power 6 | 1 5 Engine 6 | 1 5 Core . | . . Reactor . | . . Propulsion 5 | 2 3 Treads . | . . Leg 5 | 2 3 Wheel . | . . Hover . | . . Flight . | . . Utility 5 | 1 4 Device 3 | 1 2 Storage 2 | . 2 Processor . | . . Hackware . | . . Protection . | . . Artifact . | . . Weapon 5 | 2 3 Energy Gun 4 | 1 3 Energy Cannon . | . . Ballistic Gun 1 | 1 . Ballistic Cannon . | . . Launcher . | . . Special Weapon . | . . Impact Weapon . | . . Slashing Weapon . | . . Piercing Weapon . | . . Special Melee Weapon . | . . Unidentified Prototypes . | . . Parts Lost 9 | . 9 Power 3 | . 3 Propulsion 2 | . 2 Utility 2 | . 2 Weapon 2 | . 2 Highest Loss Streak 4 | . 4 To Critical Strikes . | . . Average Backups 2 | 1 2 Power . | . . Propulsion 1 | . 1 Utility . | . . Weapon . | . . Tool/Special . | . . Unused Backups . | . . Power . | . . Propulsion . | . . Utility . | . . Weapon . | . . Tool/Special . | . . Average Slot Usage (%) 90 | . 90 Engine 13 | . 13 Leg 27 | . 27 Device 11 | . 11 Storage 12 | . 12 Energy Gun 16 | . 16 Ballistic Gun 7 | . 7 Peak Build Rating 9 | 8 9 Average Rating 6 | 3 7 On Entrance 4 | . 8 Naked Turns . | . . Heaviest Build 10 | 7 10 Greatest Support 20 | 20 20 Greatest Overweight (x) . | . . Average Overweight (x) . | . . Largest Inventory Capacity 5 | 5 5 Average Capacity 5 | 5 5 Most Carried 5 | 5 5 Average Carried 2 | 1 2 Final Capacity 5 | 5 5 Final Carried 5 | 5 2 Class Distribution -------------------- 54% | Mutant 45% | Scavenger-Mutant Dominant Class ---------------- Scavenger-Mutant | -10/Materials Resources | -11 -10 ----------- Run | Yrd Mat Matter Collected 495 | 268 227 Remotely . | . . Salvage Created 1015 | 118 897 Parts 65 | 16 49 Haulers Intercepted . | . . Recyclers Shooed . | . . Parts Field Recycled . | . . Retrieved Matter . | . . Parts Self-Destructed . | . . Prevented . | . . Kills | -11 -10 ------- Run | Yrd Mat Combat Hostiles Destroyed 24 | 1 23 Guns 23 | 1 22 Classes Destroyed 6 | 2 4 Worker 1 | . 1 Tunneler 4 | 4 . Recycler 1 | . 1 Watcher 1 | . 1 Swarmer 8 | . 8 Grunt 16 | 1 15 Best Kill Streak 6 | 5 6 Combat Bots Only 6 | 1 6 Max Kills in Single Turn 1 | 1 1 Gunslinging . | . . Exploded . | . . Melee . | . . Uniques/NPCs Destroyed . | . . Combat | -11 -10 -------- Run | Yrd Mat Hostile Shots Fired 152 | 1 151 Missed 43 | 1 42 Hits 109 | . 109 Projectile 109 | . 109 Critical Strikes 1 | . 1 Damage Taken 1222 | . 1222 Core 251 | . 251 Absorbed by Shields . | . . Core Remaining (%) 100 | 100 . Volleys Fired 113 | 8 105 Largest 2 | 2 2 Hottest 80 | 60 80 Shots Fired 174 | 16 158 Gun 174 | 16 158 Cannon . | . . Launcher . | . . Special . | . . Kinetic 49 | 8 41 Thermal 90 | . 90 Explosive . | . . Electromagnetic 35 | 8 27 Robot Hit Streak 11 | 6 11 Robot Miss Streak 4 | 2 4 Penetration Max . | . . Secondary Targets 5 | . 5 Max Gunslinging Chain 1 | . 1 Shots Hit Robots 108 | 9 99 Core Hits 50 | 7 43 Critical Kills . | . . Critical Parts Destroyed 1 | . 1 Critical Strikes 2 | . 2 Destroy 1 | . 1 Corrupt 1 | . 1 Melee Attacks . | . . Impact . | . . Slashing . | . . Piercing . | . . Sneak Attacks . | . . Combat Hostiles . | . . Follow-up Attacks . | . . Damage Inflicted 1228 | 103 1125 Guns 1225 | 103 1122 Cannons . | . . Explosions . | . . Melee . | . . Ramming 3 | . 3 Kinetic 239 | 21 218 Thermal 678 | . 678 Explosive . | . . Electromagnetic 308 | 82 226 Impact . | . . Slashing . | . . Piercing . | . . Highest Corruption . | . . Average Corruption . | . . Corruption Purged . | . . Corruption Blocked . | . . Overload Shots . | . . Overflow Damage . | . . Projectiles . | . . Explosions . | . . Melee . | . . Knockbacks . | . . Impact . | . . Kinetic . | . . Secondary . | . . Self-Inflicted Damage . | . . Shots . | . . Rammed . | . . Targets Rammed 3 | . 3 Kicked 3 | . 3 Crushed . | . . Highest Temperature 168 | 40 168 Average Temperature 47 | 24 51 Received Heat Transfer 531 | . 531 Siege Activations . | . . Martial Activations . | . . Shielding Activations . | . . Robots Disrupted . | . . Combat Hostiles . | . . Robots Corrupted . | . . Combat Hostiles . | . . Parts Fried 1 | . 1 Impact Corruptions . | . . Robots Melted 1 | . 1 Combat Hostiles 1 | . 1 Parts Melted 1 | . 1 Heat Transferred 1525 | . 1525 Parts Sabotaged . | . . Parts Stolen . | . . Parts Stripped . | . . Power Chain Reactions . | . . Alert | -11 -10 ------- Run | Yrd Mat Maximum Alert Level . | . . Low Security (%) 100 | 100 100 Level 1 . | . . Level 2 . | . . Level 3 . | . . Level 4 . | . . Level 5 . | . . High Security . | . . Max Security . | . . Peak Influence 198 | 30 198 Initial 6 | . 6 Average 117 | 7 134 Influence Increases 671 | 40 631 Destroy 0b10 Robot/C 480 | 20 460 Destroy 0b10 Robot/NC 35 | 20 15 Destroy Leader 102 | . 102 Successful Hack 9 | . 9 Lose Combat Pursuer 45 | . 45 Influence Decreases 488 | 30 458 Entered New Map 4 | . 4 Time Decay 394 | 30 364 Lost Part 90 | . 90 Squads Dispatched 6 | . 6 Investigation 4 | . 4 Extermination . | . . Reinforcement 2 | . 2 Assault . | . . Garrison . | . . Intercept . | . . Searches Triggered . | . . Construction Impeded . | . . Haulers Reinforced . | . . Active Scanning Responses . | . . Cargo Convoy Interrupts . | . . Stealth | -11 -10 --------- Run | Yrd Mat Distress Signals 4 | . 4 Communications Jammed . | . . Distress Signals . | . . Times Spotted 39 | 1 38 Peak Tracking Total 7 | 1 7 Tactical Retreats 2 | . 2 Traps | -11 -10 ------- Run | Yrd Mat Traps Triggered 3 | . 3 Indirectly . | . . Trap Hack Attempts . | . . Triggered . | . . Disarmed . | . . Reprogrammed . | . . Reused . | . . Traps Extracted . | . . Installed . | . . Triggered . | . . Machines | -11 -10 ---------- Run | Yrd Mat Machines Disabled . | . . Max in Single Turn . | . . Machines Repaired . | . . Machines Dismantled . | . . Machines Sabotaged . | . . Overloaded Fab Kills . | . . Hacking | -11 -10 --------- Run | Yrd Mat Machines Accessed 2 | . 2 Terminals 1 | . 1 Fabricators . | . . Repair Stations . | . . Recycling Units 1 | . 1 Scanalyzers . | . . Garrison Access . | . . Total Hacks 7 | . 7 Successful 4 | . 4 Failed 3 | . 3 Catastrophic 1 | . 1 Database Lockouts . | . . Manual . | . . Terminals 2 | . 2 Fabricators . | . . Repair Stations . | . . Recycling Units 5 | . 5 Scanalyzers . | . . Garrison Access . | . . Terminal Hacks 1 | . 1 Registered Prototypes 1 | . 1 Fabricator Hacks . | . . Repair Station Hacks . | . . Recycling Unit Hacks 3 | . 3 Recycle Component 1 | . 1 Process 2 | . 2 Scanalyzer . | . . Garrison Access Hacks . | . . Unauthorized Hacks . | . . Terminals . | . . Fabricators . | . . Repair Stations . | . . Recycling Units . | . . Scanalyzers . | . . Garrison Access . | . . Data Cores Recovered . | . . Used . | . . Hacking Detections 2 | . 2 Full Trace Events 1 | . 1 Feedback Events . | . . Feedback Blocked . | . . Robot Schematics Acquired . | . . Robots Built . | . . Authchips . | . . Time . | . . Total Robot Build Rating . | . . Part Schematics Acquired . | . . Parts Built . | . . Authchips . | . . Time . | . . Total Part Build Rating . | . . Parts Repaired . | . . Time . | . . Parts Recycled 1 | . 1 Recycled Matter 28 | . 28 Retrieved Matter . | . . Retrieved Components . | . . Parts Scanalyzed . | . . Part Schematics Acquired . | . . Parts Damaged . | . . Bothacking | -11 -10 ------------ Run | Yrd Mat Used RIF Installer . | . . Robots Hacked . | . . Non-combat . | . . Combat . | . . Robot Hacks Applied . | . . Relay Couplers Released . | . . Fabnet Peak Effective % . | . . Robots Rewired . | . . Allies Hacked . | . . Hacks Repelled . | . . Allies | -11 -10 -------- Run | Yrd Mat Total Allies . | . . Largest Group . | . . Highest-Rated Group . | . . Highest-Rated Ally . | . . Total Orders . | . . Ally Attacks . | . . Total Damage . | . . Kills . | . . Allies Corrupted . | . . Allies Melted . | . . Intel | -11 -10 ------- Run | Yrd Mat Active Infowar (turns) 329 | 14 315 Terrain 329 | 14 315 Robot Analysis Total . | . . Derelict Logs Recovered . | . . Drone Launches . | . . Drone Recoveries . | . . Exploration | -11 -10 ------------- Run | Yrd Mat Turns Passed 1091 | 148 943 Spaces Moved 516 | 108 408 Core 31 | 31 . Treads . | . . Legs 485 | 77 408 Wheels . | . . Hover . | . . Flight . | . . Fastest Speed 50 | 50 120 Average Speed 115 | 99 120 Slowest Speed 120 | 120 120 Overloaded Moves . | . . Propulsion Burnouts . | . . Robots Hopped . | . . Potential Cave-ins . | . . Cave-ins Triggered . | . . Exploration Rate (%) 27 | 8 46 Regions Visited 1 Branch Regions . Pre-discovered Areas . | . . Known Exits Taken . | . . Unknown Exits Taken 1 | 1 . Scrap Searched . | . . Spaces Dug . | . . Terrain Destroyed . | . . Melee . | . . Projectile . | . . AOE . | . . Terrain Rammed . | . . Walls Destroyed . | . . Machines Disabled . | . . Actions | -11 -10 --------- Run | Yrd Mat Total 840 | 133 707 Wait 170 | 1 169 Move 515 | 107 408 Hop . | . . Pick Up 12 | 11 1 Fast Attach 6 | . 6 Attach 10 | 6 4 Detach . | . . Swap 8 | . 8 Drop 3 | . 3 Fire 113 | 8 105 Melee . | . . Ram . | . . Kick 3 | . 3 Crush . | . . Escape Stasis . | . . Rewire . | . . Trap . | . . Miscellaneous . | . . Route ------- -11/Scrapyard -10/Materials (discovered 1 exit: [*Sub]) History --------- Turn | Location | Event 2 | -11/Scrapyard | Met Revision 17 82 | -11/Scrapyard | Discovered new exit (range 8) 149 | -11/Scrapyard | Entered Materials 314 | -10/Materials | Build established: Mutant 589 | -10/Materials | Discovered new exit (range 14) 782 | -10/Materials | Core integrity fell below 50% 858 | -10/Materials | Lost 4 parts (1p1n1u1w) 890 | -10/Materials | Core integrity fell below 20% 958 | -10/Materials | Build established: Scavenger-Mutant 1092 | -10/Materials | Destroyed by G-34 Mercenary with Small Laser Last Messages --------------- U-05 Engineer lays Concrete. K-01 Serf collects debris. U-05 Engineer lays Concrete. K-01 Serf collects debris. U-05 Engineer lays Concrete. K-01 Serf collects debris. U-05 Engineer lays Concrete. K-01 Serf collects debris. U-05 Engineer lays Concrete. Triggered Alarm Trap. An alarm sounds. ALERT: Alarm triggered, dispatching investigation squad. G-34 Mercenary destroyed. G-34 Mercenary heat spikes uncontrollably. G-34 Mercenary overheating. G-34 Mercenary heat short circuits Sml. Laser. G-34 Mercenary overheating. G-34 Mercenary destroyed. R-06 Scavenger collects Aluminum Leg. Map ----- +----------------------------------------------------+ | | | | | | | | | | | | | | | | | | | | | | | | | | | | | | | | | ?????????????????????????????????????????????????? | | ?????????????????????????????????????????????????? | | ?????????????????????????????????????????????????? | | ?????????????????????########????????????????????? | | ?????????????????????# #????????????????????? | | ?????????????????????# #????????????????????? | | ?????????????????????# ! #????????????????????? | | ?????????????????????# #????????????????????? | | ?????????????????????# #????????????????????? | | ?????????????????????# @% #???????#????????????? | | ?????????????????????#####g##????? #????????????? | | ??????????????????########%r/???? #????????????? | | ??????????????????# !! # ## ?? #????????????? | | ??????????????????# !! # ##? ? #????????????? | | ??????????????????# + T#?? #?????????????? | | ??????????????????# | # ##?? #??????????????? | | ??????????????????# # #### #??????????????? | | ??????????????????# """ # +??????????????? | | ??????????????????# """ + #??????????????? | | ??????????????????# """ # #??????????????? | | ??????????????????# # #??????????????? | | ??????????????????# """ # #??????????????? | | ??????????????????# """ # #??????????????? | | ??????????????????# """ # +??????????????? | | ??????????????????# # #???????##?????? | | ??????????????????######## #############<#?????? | | ???????????????????????#"" #?????# ##?????? | | ?????????????????????###T #?????# #?????? | | ??????????????#########""" ####### %%%####### | | ???????????? """#""" """""## # | | ???????????? % # | | ???????????? ! # | | ????????????? # | | ????????????? % # | +----------------------------------------------------+ Best States ------------- Heat Dissipation 35 Energy Generation 10 Energy Capacity 250 Matter Stores 350 Matter Capacity 350 Sight Range 16 Terrain Scan Range 16 Terrain Scan Density 10 Evasion (%) 55 Item Schematics ----------------- None Robot Schematics ------------------ None Fabricated ------------ Nothing Repaired ---------- Nothing Alien Tech Used ----------------- None Achievements -------------- It's Just You Challenges ------------ None Game ------ Seed ScrapoidGatlingDeconstructor Manual? 0 Play Time 00:19:11 Cumulative 1.7 hours Start 2025.05.24 @ 12:55:07 End 2025.05.24 @ 13:10:54 Sessions 1 Manual Loads 0 Difficulty Rogue Special Mode None Game No. 2 Rogue 2 Adventurer 0 Explorer 0 Win Type - Total 0 Types 0/0/0/0/0/0/0/0/0/0 Lore% 0 Gallery% 3 Achievement% 4 Wizard Run 0 Options --------- Layout 1 ASCII 0 Keyboard 0 Movement Arrows Keybinds 0 Fullscreen 1 Font 32/SmallcapsGlow Map View 25x17 Zoom Use 73% Tactical HUD 0 Map Filters NONE Filters NONE Steam 1 RUN: 7db04f19-d430-40f1-8a71-c1a1448066bf